fUSD/lending_fUSD_20250820
["ID","MTS","AMOUNT","RATE_DAILY","PERIOD"]
[380397096,1755727833236,-600.0,0.00025014,2]
[380397097,1755727833246,-174.09,0.00025244,2]
[380397098,1755727833256,-342.599999,0.000254,2]
[380397099,1755727833267,-600.0,0.00025562,2]
[380397100,1755727833278,-203.243,0.00025755,2]
[380397101,1755727833288,-150.0,0.00025755,2]
[380397102,1755727833299,-241.0,0.00025775,7]
[380397103,1755727833309,-1052.84,0.00026,2]
[380397104,1755727833319,-600.0,0.0002611,2]
[380397105,1755727833329,-2222.22,0.00026139,7]
[380397106,1755727833339,-45082.56427495,0.00026303,5]
[380397107,1755727833349,-300.0,0.000264,2]
[380397108,1755727833358,-174.09,0.00026446,2]
[380397109,1755727833368,-600.0,0.00026658,2]
[380397110,1755727833378,-533.68,0.00026676,2]
[380397111,1755727833388,-1366.33,0.00026991,6]
[380397112,1755727833398,-150.0,0.00027,2]
[380397113,1755727833407,-600.0,0.00027206,2]
[380397114,1755727833417,-336.46050078,0.000273,2]
[380397115,1755727833438,-331.49609331,0.000273,2]
[380397116,1755727833454,-384.88340591,0.000273,2]
[380397117,1755727833464,-310.19762829,0.00027329,2]
[380397125,1755727837942,-689.80237171,0.00027329,2]
[380397126,1755727837952,-383.42183866,0.00027361,2]
[380397127,1755727837963,-616.57816134,0.00027361,2]
[380397128,1755727837973,-241.0,0.00027386,7]
[380397129,1755727837983,-500.0,0.00027388,2]
[380397130,1755727837993,-500.0,0.00027388,2]
[380397131,1755727838002,-700.0,0.00027388,2]
[380397132,1755727838011,-2222.22,0.00027397,7]
[380397133,1755727838021,-262.31598777,0.00027397,2]
[380397134,1755727838043,-37.68401223,0.00027397,2]
[380397135,1755727838052,-335.88938794,0.00027397,2]
[380397136,1755727838062,-1500.0,0.00027397,16]
[380397137,1755727838072,-434.99,0.00027397,80]
[380397138,1755727838082,-300.0,0.000274,2]
[380397139,1755727838091,-241.0,0.00027616,14]
[380397140,1755727838101,-174.09,0.00027648,2]
[380397141,1755727838111,-1000.0,0.00027705,2]
[380397142,1755727838120,-600.0,0.00027754,2]
[380397143,1755727838129,-4152.0,0.00027874,2]
[380397144,1755727838140,-19347.318,0.00027874,2]
[380397145,1755727838149,-167.62,0.00028069,2]
[380397146,1755727838158,-35578.9555366,0.00028143,2]
[380397147,1755727838168,-322.6107,0.00028153,2]
[380397148,1755727838177,-160.0,0.00028153,2]
[380397149,1755727838186,-721.12765535,0.00028153,2]
[380397150,1755727838196,-277.35679052,0.00028153,2]
[380397151,1755727838205,-1000.0,0.00028205,2]
[380397152,1755727838214,-500.0,0.0002822,2]
[380397154,1755727838224,-150.0,0.0002822,2]
[380397156,1755727838233,-150.0,0.0002822,2]
[380397158,1755727838242,-500.0,0.0002822,2]
[380397160,1755727838252,-300.0,0.000284,2]
[380397162,1755727838262,-700.0,0.00028484,7]
[380397164,1755727838271,-161.0,0.00028493,2]
[380397166,1755727838280,-1535.0,0.00028494,5]
[380397168,1755727838289,-500.0,0.00028494,2]
[380397170,1755727838298,-247.0,0.00028494,2]
[380397171,1755727838307,-500.0,0.00028494,2]
[380397173,1755727838317,-2000.0,0.000285,2]
[380397175,1755727838326,-277.0,0.000285,2]
[380397177,1755727838336,-1052.84,0.000286,30]
[380397179,1755727838345,-500.0,0.00028768,2]
[380397182,1755727838354,-500.0,0.00028768,2]
[380397184,1755727838364,-1000.0,0.000288,2]
[380397186,1755727838373,-500.0,0.00028838,120]
[380397188,1755727838383,-500.0,0.00028838,120]
[380397189,1755727838392,-2222.22,0.00028898,30]
[380397192,1755727838402,-150.0,0.00028938,2]
[380397193,1755727838411,-241.0,0.00028997,14]
[380397195,1755727838420,-10000.0,0.00029,4]
[380397198,1755727838429,-6722.63752104,0.00029,2]
[380397200,1755727838439,-279.0,0.00029,2]
[380397202,1755727838449,-3600.0,0.00029,30]
[380397204,1755727838457,-156.63096311,0.00029041,2]
[380397206,1755727838467,-1444.0,0.00029041,120]
[380397208,1755727838477,-552.0,0.00029042,2]
[380397210,1755727838488,-500.0,0.00029042,2]
[380397212,1755727838498,-35578.9555366,0.000291,2]
[380397214,1755727838507,-45082.56427495,0.0002911,11]
[380397216,1755727838516,-798.85,0.00029141,2]
[380397218,1755727838525,-1366.33,0.00029183,10]
[380397220,1755727838534,-762.51165586,0.00029215,2]
[380397222,1755727838543,-1000.0,0.00029295,2]
[380397224,1755727838553,-700.0,0.00029306,7]
[380397226,1755727838562,-580.0,0.00029316,2]
[380397228,1755727838572,-1563.5,0.00029383,30]
[380397230,1755727838582,-328.0,0.00029392,2]
[380397232,1755727838592,-300.0,0.000294,2]
[380397234,1755727838602,-843.97594471,0.000294,30]
[380397236,1755727838611,-762.51165586,0.00029491,2]
[380397238,1755727838620,-334.5472959,0.00029522,2]
[380397240,1755727838629,-287.61899177,0.00029522,2]
[380397242,1755727838639,-3334.22512283,0.00029563,2]
[380397244,1755727838648,-3070.42024971,0.00029567,2]
[380397246,1755727838658,-160.04066521,0.00029574,2]
[380397247,1755727838667,-160.04066521,0.00029574,2]
[380397249,1755727838677,-3070.42024971,0.00029578,2]
[380397251,1755727838686,-3070.42024971,0.00029578,2]
[380397253,1755727838695,-1411.90605542,0.0002958,2]
[380397255,1755727838704,-500.0,0.0002958,7]
[380397257,1755727838714,-500.0,0.0002958,7]
[380397259,1755727838723,-12239.5248413,0.00029581,2]
[380397261,1755727838732,-1243.45576458,0.00029582,2]
[380397263,1755727838742,-18304.67510163,0.00029583,2]
[380397264,1755727838756,-466.11916661,0.00029584,2]
[380397265,1755727838765,-19650.72685452,0.00029585,2]
[380397266,1755727838774,-315761.35117605,0.0002959,2]
[380397267,1755727838783,-19650.72685452,0.00029593,2]
[380397268,1755727838793,-3070.42024971,0.00029593,2]
[380397269,1755727838802,-12239.5248413,0.00029597,2]
[380397270,1755727838811,-1411.90605542,0.00029597,2]
[380397271,1755727838821,-19650.72685452,0.00029597,2]
[380397273,1755727838830,-315761.35117605,0.00029598,2]
[380397275,1755727838841,-1411.90605542,0.00029599,2]
[380397277,1755727838851,-1000.0,0.000296,2]
[380397279,1755727838860,-19650.72685452,0.00029603,2]
[380397281,1755727838869,-1000.0,0.00029603,2]
[380397283,1755727838879,-19650.72685452,0.00029605,2]
[380397285,1755727838890,-18304.67510163,0.00029607,2]
[380397287,1755727838899,-55295.69891193,0.00029609,2]
[380397289,1755727838909,-466.11916661,0.00029612,2]
[380397291,1755727838918,-1357.82264387,0.00029612,2]
[380397293,1755727838927,-160.04066521,0.00029614,2]
[380397295,1755727838936,-466.11916661,0.00029614,2]
[380397297,1755727838945,-12239.5248413,0.00029619,2]
[380397299,1755727838955,-1357.82264387,0.00029621,2]
[380397301,1755727838964,-315761.35117605,0.00029622,2]
[380397303,1755727838974,-18304.67510163,0.00029623,2]
[380397305,1755727838984,-1411.90605542,0.00029623,2]
[380397307,1755727838993,-3334.22512283,0.00029628,2]
[380397309,1755727839003,-3334.22512283,0.00029628,2]
[380397311,1755727839012,-1250.5641406,0.00029629,2]
[380397313,1755727839021,-18304.67510163,0.00029632,2]
[380397315,1755727839030,-1357.82264387,0.00029635,2]
[380397317,1755727839040,-55295.69891193,0.00029647,2]
[380397319,1755727839049,-315761.35117605,0.00029647,2]
[380397321,1755727839058,-150.0,0.00029649,2]
[380397323,1755727839067,-1243.45576458,0.00029653,2]
[380397325,1755727839076,-19650.72685452,0.00029653,2]
[380397327,1755727839085,-1243.45576458,0.00029654,2]
[380397329,1755727839094,-1243.45576458,0.00029658,2]
[380397331,1755727839103,-1357.82264387,0.00029664,2]
[380397333,1755727839113,-1250.5641406,0.00029672,2]
[380397335,1755727839122,-315761.35117605,0.00029672,2]
[380397337,1755727839133,-3334.22512283,0.00029672,2]
[380397339,1755727839142,-160.04066521,0.00029674,2]
[380397341,1755727839152,-3070.42024971,0.00029674,2]
[380397343,1755727839161,-1250.5641406,0.00029675,2]
[380397345,1755727839170,-271.0,0.0002968,2]
[380397347,1755727839179,-1243.45576458,0.00029685,2]
[380397349,1755727839189,-466.11916661,0.00029685,2]
[380397351,1755727839198,-12239.5248413,0.00029689,2]
[380397353,1755727839207,-55295.69891193,0.00029693,2]
[380397355,1755727839216,-1250.5641406,0.00029694,2]
[380397357,1755727839226,-1243.45576458,0.00029694,2]
[380397359,1755727839236,-328.0,0.00029695,2]
[380397361,1755727839245,-466.11916661,0.00029697,2]
[380397363,1755727839254,-3334.22512283,0.00029699,2]
[380397365,1755727839263,-12239.5248413,0.000297,2]
[380397367,1755727839273,-458.46930693,0.000297,7]
[380397369,1755727839282,-3334.22512283,0.00029704,2]
[380397371,1755727839291,-1357.82264387,0.00029705,2]
[380397373,1755727839301,-798.85,0.00029706,2]
[380397375,1755727839310,-798.85,0.00029706,2]
[380397377,1755727839320,-798.85,0.00029706,2]
[380397379,1755727839329,-796.23,0.00029706,2]
[380397381,1755727839339,-1357.82264387,0.00029706,2]
[380397383,1755727839348,-12239.5248413,0.00029707,2]
[380397385,1755727839358,-19650.72685452,0.00029716,2]
[380397387,1755727839367,-12239.5248413,0.00029716,2]
[380397389,1755727839376,-1250.5641406,0.00029718,2]
[380397392,1755727839386,-1357.82264387,0.00029719,2]
[380397394,1755727839396,-1000.0,0.0002972,45]
[380397396,1755727839405,-55295.69891193,0.00029725,2]
[380397398,1755727839415,-1357.82264387,0.00029727,2]
[380397400,1755727839424,-160.04066521,0.00029729,2]
[380397402,1755727839434,-1250.5641406,0.00029732,2]
[380397404,1755727839443,-3070.42024971,0.00029732,2]
[380397406,1755727839452,-1250.5641406,0.00029736,2]
[380397408,1755727839461,-18304.67510163,0.00029736,2]
[380397410,1755727839470,-55295.69891193,0.00029738,2]
[380397412,1755727839480,-1411.90605542,0.00029738,2]
[380397414,1755727839490,-160.04066521,0.00029738,2]
[380397416,1755727839499,-1357.82264387,0.00029739,2]
[380397418,1755727839508,-466.11916661,0.00029739,2]
[380397420,1755727839519,-1357.82264387,0.00029742,2]
[380397422,1755727839530,-1411.90605542,0.00029751,2]
[380397424,1755727839539,-18304.67510163,0.00029752,2]
[380397426,1755727839550,-315761.35117605,0.00029753,2]
[380397428,1755727839560,-1411.90605542,0.00029753,2]
[380397430,1755727839570,-1357.82264387,0.00029756,2]
[380397432,1755727839579,-160.04066521,0.00029759,2]
[380397434,1755727839589,-55295.69891193,0.00029761,2]
[380397436,1755727839599,-1357.82264387,0.00029763,2]
[380397438,1755727839608,-1357.82264387,0.00029765,2]
[380397440,1755727839618,-55295.69891193,0.00029766,2]
[380397442,1755727839628,-1243.45576458,0.00029771,2]
[380397444,1755727839638,-18304.67510163,0.00029777,2]
[380397446,1755727839648,-315761.35117605,0.0002978,2]
[380397449,1755727839658,-3070.42024971,0.00029786,2]
[380397451,1755727839668,-1357.82264387,0.00029787,2]
[380397453,1755727839678,-466.11916661,0.00029788,2]
[380397455,1755727839687,-3334.22512283,0.00029798,2]
[380397457,1755727839697,-762.51165587,0.00029799,2]
[380397459,1755727839707,-160.31027199,0.0002986,15]
[380397461,1755727839716,-200.0,0.00029895,2]
[380397463,1755727839725,-1052.84,0.000299,30]
[380397465,1755727839735,-200.0,0.0002996,2]
[380397467,1755727839745,-35578.9555366,0.0002998,2]
[380397469,1755727839758,-24883.29741288,0.0002999,2]
[380397471,1755727839768,-5019.38,0.00029998,7]
[380397473,1755727839778,-328.0,0.00029998,2]
[380397475,1755727839787,-238.25499422,0.00029999,2]
[380397477,1755727839798,-572.78962802,0.00029999,2]
[380397479,1755727839808,-168.81651091,0.00029999,2]
[380397481,1755727839817,-155.0,0.0003,2]
[380397483,1755727839827,-279.14,0.0003,2]
[380397485,1755727839837,-164.2,0.0003,2]
[380397487,1755727839846,-157.0,0.0003,14]
[380397489,1755727839856,-308.17,0.0003,2]
[380397491,1755727839865,-3600.0,0.0003,31]
[380397493,1755727839875,-843.97594471,0.0003,7]
[380397496,1755727839885,-1196.0,0.0003,14]
[380397498,1755727839895,-212.04014818,0.0003,7]
[380397500,1755727839904,-150.0,0.00030019,2]
[380397502,1755727839913,-200.0,0.00030026,2]
[380397504,1755727839923,-165.72312623,0.00030036,2]
[380397505,1755727839932,-2824500.4804665,0.00030042,22]
[380397515,1755727840011,-211.876,0.00024874,2]
[380397517,1755727840021,-156.63096307,0.00029298,2]
[380397518,1755727840030,-5286.86019184,0.00030042,22]
[380397519,1755727840042,-112568.60469943,0.00030042,22]
[380397537,1755727840262,-370.15555731,0.00030042,22]
[380397672,1755727843117,-458.23406168,0.00030042,2]
[380397673,1755727843257,-14961.47185921,0.00030042,2]
[380397674,1755727843267,-719237.86832254,0.00030042,22]
[380397754,1755727846146,-156.63096307,0.00029555,2]
[380397755,1755727846170,-1309.70495011,0.00029983,2]
[380397761,1755727923047,2000.0,0.00023369,120]
[380397762,1755727923557,2000.0,0.00021622,120]
[380397765,1755728042910,2000.0,0.00023369,120]
[380397766,1755728043015,2000.0,0.00021581,120]
[380397769,1755728593514,236.72,0.00025978,120]
[380397771,1755728710644,-284.85,0.00011,2]
[380397772,1755728717787,-1643.65166444,0.00011,2]
[380397773,1755728725582,-2222.22,0.00011,2]
[380397781,1755728786380,-160.31027199,0.000109,2]
[380397782,1755728786519,-79.37945602,0.00011,2]
[380397783,1755728792019,-150.0,0.00010999,2]
[380397784,1755728806383,-75.96770734,0.00010999,2]
[380397785,1755728806417,-248.06458532,0.00010999,2]
[380397786,1755728828395,-195.76027737,0.00010999,2]
[380397787,1755728846603,-150.0,0.00010999,2]
[380397793,1755728850700,-117.53830943,0.00010999,2]
[380397794,1755728850724,-64.92338114,0.00010999,2]
[380397795,1755728858895,-9.8331529,0.00010999,2]
[380397796,1755728858937,-280.3336942,0.00010999,2]
[380397797,1755728867911,-267.41430741,0.00010999,2]
[380397798,1755728867939,-161.11524865,0.00010999,2]
[380397799,1755728867966,-170.27491792,0.00010999,2]
[380397800,1755728867994,-223.02704706,0.00010999,2]
[380397801,1755728868208,-3104.26760121,0.00011,2]
[380397802,1755728874869,-423.0,0.00011,2]
[380397803,1755728882639,-500.0,0.00011,2]
[380397804,1755728891712,-225.43155847,0.00011,2]
[380397805,1755728898828,-500.0,0.00010949,2]
[380397806,1755728907023,-500.0,0.00010949,2]
[380397807,1755728915184,-500.0,0.00010949,2]
[380397808,1755728923184,-195.5284472,0.00010949,2]
[380397809,1755728923222,-108.9431056,0.00010949,2]
[380397811,1755728931055,-241.34635446,0.00010949,2]
[380397812,1755728931084,-640.40081107,0.00010999,2]
[380397813,1755728931122,-295.36658536,0.00010999,2]
[380397814,1755728931163,-203.92523339,0.00010999,2]
[380397815,1755728931191,-594.51952022,0.00010999,2]
[380397816,1755728931278,-4751.51083872,0.00011,2]
[380397817,1755728938505,-500.0,0.00011,2]
[380397818,1755728946444,-225.43155847,0.00011,2]
[380397826,1755728954968,-423.0,0.00010999,2]
[380397827,1755728962304,-77.0,0.00010999,2]
[380397828,1755728962332,-120.56844153,0.00010999,2]
[380397829,1755728962367,-104.86311694,0.00010999,2]
[380397830,1755728970779,-500.0,0.00011,2]
[380397831,1755728978026,-202.04,0.00010999,2]
[380397832,1755728986628,-194.74642057,0.00010999,3]
[380397833,1755728986666,-110.50715886,0.00010999,2]
[380397834,1755728994440,-187.45284114,0.00010999,2]
[380397835,1755728994475,-125.09431772,0.00010999,2]
[380397836,1755729002530,-151.0,0.00010999,3]
[380397837,1755729010302,-151.0,0.00010998,2]
[380397838,1755729026830,-150.0,0.00010998,2]
[380397854,1755729032293,-150.06916524,0.000109,2]
[380397856,1755729032302,-160.31027196,0.000109,2]
[380397858,1755729032312,-1063.67233627,0.000109,2]
[380397862,1755729032479,-66.67996187,0.000109,2]
[380397863,1755729032489,-899.0,0.00010998,2]
[380397864,1755729032499,-240.0,0.00010998,2]
[380397865,1755729032509,-900.88315286,0.00010999,3]
[380397866,1755729032518,-1051.88315286,0.00010999,3]
[380397867,1755729032528,-572.55940442,0.00010999,3]
[380397868,1755729032540,-479.32374844,0.00010999,3]
[380397869,1755729032549,-879.74292591,0.00010999,3]
[380397870,1755729032561,-172.14022695,0.00010999,3]
[380397871,1755729032571,-1051.88315284,0.00010999,3]
[380397872,1755729032580,-150.0,0.00010999,2]
[380397873,1755729032588,-374.90568228,0.00010999,2]
[380397874,1755729032598,-500.0,0.00010999,2]
[380397875,1755729032608,-500.0,0.00010999,2]
[380397877,1755729032617,-49325.99957359,0.00011,2]
[380397880,1755729032628,-11574.14746288,0.00011,2]
[380397882,1755729032639,-424.0,0.00011,2]
[380397885,1755729032655,-606.97,0.00011,2]
[380397907,1755729038245,-1550.40001,0.00011,2]
[380397908,1755729038257,-2921.25,0.00011,2]
[380397909,1755729038483,-2584401.58557007,0.00011,2]
[380397910,1755729038493,-1667072.64490277,0.00011,2]
[380397911,1755729038503,-2683612.89034325,0.00011,2]
[380397912,1755729038512,-7502.95,0.00011,2]
[380397913,1755729038521,-136264.13,0.00011,2]
[380397914,1755729038531,-300.0,0.00011049,2]
[380397915,1755729038541,-250.0,0.00011049,2]
[380397916,1755729038550,-845.80720061,0.00011099,2]
[380397917,1755729038559,-61739.01178542,0.00011099,2]
[380397918,1755729038572,-845.80720061,0.000119,2]
[380397919,1755729038591,-1680.0,0.00012098,2]
[380397920,1755729038603,-300.0,0.00012099,2]
[380397921,1755729038612,-300.0,0.000121,2]
[380397922,1755729038622,-250.0,0.000121,2]
[380397923,1755729038632,-845.80720061,0.000129,2]
[380397924,1755729038641,-1030.40435938,0.00013,2]
[380397925,1755729038650,-160.31027196,0.00013233,2]
[380397927,1755729038659,-1623.0,0.00013308,2]
[380397929,1755729038669,-150.0,0.00013681,2]
[380397931,1755729038678,-150.0,0.00013681,2]
[380397933,1755729038687,-453.62,0.00013699,2]
[380397935,1755729038696,-200.0,0.00013699,2]
[380397937,1755729038706,-200.0,0.00013699,2]
[380397939,1755729038715,-250.0,0.00013718,2]
[380397941,1755729038725,-845.80720061,0.000139,2]
[380397943,1755729038734,-2408.12,0.00014203,2]
[380397945,1755729038743,-16196.60554749,0.00014748,2]
[380397947,1755729038753,-845.80720061,0.000149,2]
[380397949,1755729038762,-164.7623,0.0001501,30]
[380397951,1755729038772,-611.0,0.00015214,2]
[380397953,1755729038782,-160.31027196,0.00015567,2]
[380397955,1755729038792,-13991.47375025,0.000157,2]
[380397957,1755729038801,-845.80720061,0.000159,2]
[380397959,1755729038810,-500.0,0.00015973,2]
[380397961,1755729038820,-150.0,0.00015999,2]
[380397963,1755729038830,-4635531.55232761,0.00015999,2]
[380397967,1755729038840,-21038.72737279,0.00015999,2]
[380397970,1755729038850,-1167.6676729,0.00016,2]
[380397973,1755729038859,-7502.95,0.00016,2]
[380397975,1755729038868,-136264.13,0.00016,2]
[380397977,1755729038878,-4940.116629,0.00016,2]
[380397979,1755729038887,-151.0,0.00016,2]
[380397981,1755729038897,-4940.116629,0.00016,2]
[380397983,1755729038906,-151.0,0.00016,2]
[380397985,1755729038915,-151.0,0.00016,2]
[380397987,1755729038924,-151.0,0.00016,2]
[380397989,1755729038933,-151.0,0.00016,2]
[380397991,1755729038943,-245.615268,0.00016,2]
[380397993,1755729038952,-151.0,0.00016,2]
[380397995,1755729038961,-4940.116629,0.00016,2]
[380397997,1755729038970,-151.0,0.00016,2]
[380397999,1755729038980,-4940.116629,0.00016,2]
[380398001,1755729038990,-245.615268,0.00016,2]
[380398003,1755729038999,-151.0,0.00016,2]
[380398005,1755729039008,-245.615268,0.00016,2]
[380398007,1755729039018,-245.615268,0.00016,2]
[380398009,1755729039027,-151.0,0.00016,2]
[380398011,1755729039037,-151.0,0.00016,2]
[380398013,1755729039047,-279.891893,0.00016,2]
[380398015,1755729039056,-1000.0,0.00016521,2]
[380398017,1755729039066,-204.21,0.00016635,2]
[380398019,1755729039075,-845.80720061,0.000169,2]
[380398021,1755729039085,-353.49253082,0.00017068,2]
[380398023,1755729039095,-13991.41,0.000177,2]
[380398025,1755729039104,-845.80720061,0.000179,2]
[380398027,1755729039114,-500.0,0.00017973,2]
[380398029,1755729039123,-500.0,0.00017973,2]
[380398031,1755729039133,-511.17771888,0.00017973,2]
[380398033,1755729039145,-300.0,0.00017999,2]
[380398034,1755729039155,-666.0,0.00017999,2]
[380398035,1755729039164,-1325089.70503829,0.00018,2]
[380398036,1755729039173,-18279.84576004,0.00018,2]
[380398037,1755729039182,-151.0,0.00018,2]
[380398038,1755729039191,-151.0,0.00018,2]
[380398039,1755729039200,-151.0,0.00018,2]
[380398040,1755729039209,-151.0,0.00018,2]
[380398041,1755729039220,-151.0,0.00018,2]
[380398042,1755729039229,-151.0,0.00018,2]
[380398044,1755729039239,-151.0,0.00018,2]
[380398046,1755729039248,-151.0,0.00018,2]
[380398048,1755729039258,-151.0,0.00018,2]
[380398050,1755729039267,-159.758689,0.00018,2]
[380398052,1755729039277,-151.0,0.00018,2]
[380398054,1755729039287,-217.623633,0.00018,2]
[380398056,1755729039297,-151.0,0.00018,2]
[380398058,1755729039309,-306.52494,0.00018,2]
[380398060,1755729039319,-151.0,0.00018,2]
[380398062,1755729039329,-306.52494,0.00018,2]
[380398064,1755729039339,-151.0,0.00018,2]
[380398066,1755729039349,-151.0,0.00018,2]
[380398068,1755729039359,-151.0,0.00018,2]
[380398070,1755729039368,-306.52494,0.00018,2]
[380398072,1755729039379,-151.0,0.00018,2]
[380398074,1755729039390,-306.52494,0.00018,2]
[380398076,1755729039400,-350.710148,0.00018,2]
[380398078,1755729039409,-350.710148,0.00018,2]
[380398080,1755729039418,-151.0,0.00018,2]
[380398082,1755729039427,-350.710148,0.00018,2]
[380398084,1755729039437,-350.710148,0.00018,2]
[380398086,1755729039447,-151.0,0.00018,2]
[380398088,1755729039456,-151.0,0.00018,2]
[380398090,1755729039465,-242.164717,0.00018,2]
[380398092,1755729039475,-242.164717,0.00018,2]
[380398094,1755729039485,-242.164717,0.00018,2]
[380398096,1755729039494,-242.164717,0.00018,2]
[380398098,1755729039503,-244.3268,0.00018,2]
[380398100,1755729039513,-244.3268,0.00018,2]
[380398102,1755729039522,-244.3268,0.00018,2]
[380398104,1755729039532,-244.3268,0.00018,2]
[380398182,1755729041476,-1744.10402827,0.000181,2]
[380398183,1755729041509,-500.0,0.00018521,2]
[380398184,1755729041529,-500.0,0.00018521,2]
[380398185,1755729041565,-152.77,0.000188,2]
[380398186,1755729041589,-152.77,0.000188,2]
[380398187,1755729041600,-152.77,0.000188,2]
[380398188,1755729041610,-152.77,0.000188,2]
[380398189,1755729041619,-152.77,0.000188,2]
[380398190,1755729041629,-152.77,0.000188,2]
[380398191,1755729041639,-152.77,0.000188,2]
[380398192,1755729041648,-152.77,0.000188,2]
[380398193,1755729041658,-152.77,0.000188,2]
[380398194,1755729041667,-152.77,0.000188,2]
[380398195,1755729041678,-152.77,0.000188,2]
[380398196,1755729041687,-152.77,0.000188,2]
[380398197,1755729041696,-152.77,0.000188,2]
[380398198,1755729041706,-152.77,0.000188,2]
[380398199,1755729041716,-152.77,0.000188,2]
[380398200,1755729041725,-152.77,0.000188,2]
[380398201,1755729041735,-152.77,0.000188,2]
[380398202,1755729041744,-152.77,0.000188,2]
[380398203,1755729041754,-152.77,0.000188,2]
[380398204,1755729041764,-152.77,0.000188,2]
[380398205,1755729041773,-152.77,0.000188,2]
[380398206,1755729041782,-152.77,0.000188,2]
[380398207,1755729041792,-2921.52472732,0.00018882,2]
[380398208,1755729041802,-845.80720061,0.000189,2]
[380398209,1755729041812,-25000.0,0.0001897,2]
[380398210,1755729041822,-500.0,0.00018973,2]
[380398211,1755729041832,-500.0,0.00018973,2]
[380398212,1755729041841,-500.0,0.00018973,2]
[380398213,1755729041851,-500.0,0.00018973,2]
[380398214,1755729041862,-500.0,0.00018973,2]
[380398215,1755729041872,-500.0,0.00018973,2]
[380398216,1755729041883,-500.0,0.00018973,2]
[380398217,1755729041893,-300.0,0.00018999,2]
[380398218,1755729041903,-666.0,0.00018999,2]
[380398219,1755729041913,-130331.23998452,0.00019,3]
[380398220,1755729041922,-458.46930693,0.00019,3]
[380398221,1755729041933,-423555.46638488,0.00019,2]
[380398222,1755729041943,-5062.94130812,0.00019,2]
[380398223,1755729041952,-212.04014818,0.00019,3]
[380398224,1755729041962,-350.20949797,0.0001901,7]
[380398225,1755729041972,-5000.0,0.00019178,2]
[380398226,1755729041982,-1130.35229813,0.00019212,2]
[380398227,1755729041991,-19999.99,0.00019339,2]
[380398228,1755729042001,-1016.07251768,0.000194,2]
[380398229,1755729042011,-1090.64711466,0.00019521,2]
[380398230,1755729042022,-1000.0,0.00019521,2]
[380398231,1755729042032,-1000.0,0.00019521,2]
[380398232,1755729042041,-1000.0,0.00019521,2]
[380398233,1755729042051,-1000.0,0.00019521,2]
[380398234,1755729042060,-1000.0,0.00019521,2]
[380398235,1755729042071,-1000.0,0.00019521,2]
[380398236,1755729042082,-13991.41,0.000197,2]
[380398237,1755729042092,-6291.79269251,0.00019852,2]
[380398238,1755729042101,-4820.13124941,0.000199,3]
[380398239,1755729042111,-845.80720061,0.000199,2]
[380398240,1755729042122,-150.0,0.0001993,2]
[380398241,1755729042132,-862.80395373,0.00019931,2]
[380398242,1755729042148,-1099.65209789,0.00019932,2]
[380398243,1755729042158,-1336.50024205,0.00019934,2]
[380398244,1755729042167,-1573.34838621,0.00019935,2]
[380398245,1755729042178,-1810.19653037,0.00019936,2]
[380398246,1755729042188,-2047.04467453,0.00019937,2]
[380398247,1755729042197,-2283.89281869,0.00019938,2]
[380398248,1755729042207,-2520.74096285,0.00019939,2]
[380398249,1755729042217,-2757.58910702,0.0001994,2]
[380398250,1755729042227,-300.0,0.00019949,2]
[380398251,1755729042236,-568672.31149983,0.0001995,15]
[380398252,1755729042246,-209.436826,0.0001995,2]
[380398253,1755729042255,-151.0,0.0001995,2]
[380398254,1755729042265,-209.436826,0.0001995,2]
[380398255,1755729042275,-209.436826,0.0001995,2]
[380398256,1755729042284,-209.436826,0.0001995,2]